fUST/lending_fUST_20260117
["ID","MTS","AMOUNT","RATE_DAILY","PERIOD"]
[402307500,1768653061534,-500.0,0.00016712,3]
[402307501,1768653061544,-500.0,0.00016712,3]
[402307502,1768653061554,-500.0,0.00016712,3]
[402307503,1768653061564,-500.0,0.00016712,3]
[402307504,1768653061573,-500.0,0.00016712,3]
[402307505,1768653061582,-500.0,0.00016712,3]
[402307506,1768653061592,-500.0,0.00016712,3]
[402307507,1768653061602,-1892.19,0.00016712,3]
[402307508,1768653061611,-563.8,0.00016712,3]
[402307509,1768653061621,-1294.45,0.00016712,3]
[402307510,1768653061630,-500.0,0.00016712,3]
[402307511,1768653061640,-694.6,0.00016712,3]
[402307512,1768653061649,-817.66,0.00016712,3]
[402307513,1768653061659,-500.0,0.00016712,3]
[402307514,1768653061670,-500.0,0.00016712,3]
[402307515,1768653061679,-1517.43,0.00016712,3]
[402307516,1768653061691,-931.54,0.00016712,3]
[402307517,1768653061701,-500.0,0.00016712,3]
[402307518,1768653061711,-1075.67,0.00016712,3]
[402307519,1768653061720,-1255.88,0.00016712,3]
[402307520,1768653061730,-1451.63,0.00016712,3]
[402307521,1768653061740,-730.33,0.00016712,3]
[402307522,1768653061750,-694.92,0.00016712,3]
[402307523,1768653061759,-246.89631936,0.00016712,3]
[402307524,1768653061768,-1054.42,0.00016712,3]
[402307525,1768653061778,-500.0,0.00016712,3]
[402307526,1768653061787,-500.0,0.00016712,3]
[402307527,1768653061797,-500.0,0.00016712,3]
[402307528,1768653061807,-500.0,0.00016712,3]
[402307529,1768653061816,-500.0,0.00016712,3]
[402307530,1768653061826,-2132.97,0.00016712,3]
[402307531,1768653061836,-500.0,0.00016712,3]
[402307532,1768653061845,-633.14,0.00016712,3]
[402307533,1768653061855,-700.32,0.00016712,3]
[402307534,1768653061864,-500.0,0.00016712,3]
[402307535,1768653061874,-588.41,0.00016712,3]
[402307536,1768653061883,-500.0,0.00016712,3]
[402307537,1768653061893,-500.0,0.00016712,3]
[402307538,1768653061904,-500.0,0.00016712,3]
[402307539,1768653061914,-1559.59,0.00016712,3]
[402307540,1768653061924,-1366.17,0.00016712,3]
[402307541,1768653061934,-1199.96,0.00016712,3]
[402307542,1768653061943,-1044.14,0.00016712,3]
[402307543,1768653061953,-1102.58,0.00016712,3]
[402307544,1768653061963,-500.0,0.00016712,3]
[402307545,1768653061973,-443.90722234,0.00016712,3]
[402307546,1768653061982,-500.0,0.00016712,3]
[402307547,1768653061991,-1108.81,0.00016712,3]
[402307548,1768653062001,-1412.19,0.00016712,3]
[402307549,1768653062011,-2136.32,0.00016712,3]
[402307550,1768653062020,-151.0,0.00016712,2]
[402307551,1768653062030,-500.0,0.00016712,3]
[402307552,1768653062040,-151.0,0.00016712,2]
[402307553,1768653062051,-535.22,0.00016712,3]
[402307554,1768653062061,-500.0,0.00016712,3]
[402307555,1768653062071,-929.98,0.00016712,3]
[402307556,1768653062080,-151.0,0.00016712,2]
[402307557,1768653062090,-687.03896503,0.00016712,3]
[402307558,1768653062099,-500.0,0.00016712,3]
[402307559,1768653062108,-913.11,0.00016712,3]
[402307560,1768653062118,-2020.66,0.00016712,3]
[402307561,1768653062127,-686.85,0.00016712,3]
[402307562,1768653062137,-1717.32,0.00016712,3]
[402307563,1768653062147,-500.0,0.00016712,3]
[402307564,1768653062157,-1456.0,0.00016712,3]
[402307565,1768653062167,-980.65,0.00016712,3]
[402307566,1768653062176,-577.36,0.00016712,3]
[402307567,1768653062186,-1622.28,0.00016712,3]
[402307568,1768653062195,-500.0,0.00016712,3]
[402307569,1768653062205,-500.0,0.00016712,3]
[402307570,1768653062214,-502.00992738,0.00016712,3]
[402307571,1768653062224,-500.0,0.00016712,3]
[402307572,1768653062233,-500.0,0.00016712,3]
[402307573,1768653062243,-500.0,0.00016712,3]
[402307574,1768653062251,-500.0,0.00016712,3]
[402307575,1768653062261,-500.0,0.00016712,3]
[402307576,1768653062271,-500.0,0.00016712,3]
[402307577,1768653062281,-500.0,0.00016712,3]
[402307578,1768653062290,-500.0,0.00016712,3]
[402307579,1768653062299,-626.22,0.00016712,3]
[402307580,1768653062309,-500.0,0.00016712,3]
[402307581,1768653062318,-1431.76,0.00016712,3]
[402307582,1768653062329,-500.0,0.00016712,3]
[402307583,1768653062339,-939.73,0.00016712,3]
[402307584,1768653062349,-500.0,0.00016712,3]
[402307585,1768653062359,-500.0,0.00016712,3]
[402307586,1768653062369,-567.25,0.00016712,3]
[402307587,1768653062378,-512.3,0.00016712,3]
[402307588,1768653062388,-500.0,0.00016712,3]
[402307589,1768653062397,-1326.69,0.00016712,3]
[402307590,1768653062406,-574.969696,0.00016712,3]
[402307591,1768653062416,-500.0,0.00016712,3]
[402307592,1768653062426,-1526.12,0.00016712,3]
[402307593,1768653062436,-349.90564396,0.00016712,3]
[402307594,1768653062445,-541.31799653,0.00016712,3]
[402307595,1768653062455,-500.0,0.00016712,3]
[402307596,1768653062464,-500.0,0.00016712,3]
[402307597,1768653062474,-692.94,0.00016712,3]
[402307598,1768653062483,-1447.89,0.00016712,3]
[402307599,1768653062494,-2677.48,0.00016712,3]
[402307600,1768653062504,-197.65009563,0.00016712,3]
[402307601,1768653062515,-1106.71,0.00016712,3]
[402307602,1768653062524,-216.1398381,0.00016712,3]
[402307603,1768653062534,-500.0,0.00016712,3]
[402307604,1768653062544,-618.83,0.00016712,3]
[402307605,1768653062553,-500.0,0.00016712,3]
[402307606,1768653062563,-500.0,0.00016712,3]
[402307607,1768653062573,-500.0,0.00016712,3]
[402307608,1768653062583,-500.0,0.00016712,3]
[402307609,1768653062594,-500.0,0.00016712,3]
[402307610,1768653062604,-544.42342876,0.00016712,3]
[402307611,1768653062615,-500.0,0.00016712,3]
[402307612,1768653062628,-638.34,0.00016712,3]
[402307613,1768653062637,-500.0,0.00016712,3]
[402307614,1768653062647,-500.0,0.00016712,3]
[402307615,1768653062656,-500.0,0.00016712,3]
[402307616,1768653062666,-472.41430431,0.00016712,3]
[402307617,1768653062675,-500.0,0.00016712,3]
[402307618,1768653062684,-500.0,0.00016712,3]
[402307619,1768653062694,-474.92477012,0.00016712,3]
[402307620,1768653062703,-503.22,0.00016712,3]
[402307621,1768653062713,-581.87,0.00016712,3]
[402307622,1768653062723,-500.0,0.00016712,3]
[402307623,1768653062733,-500.0,0.00016712,3]
[402307624,1768653062812,-500.0,0.00016712,3]
[402307625,1768653062821,-722.98,0.00016712,3]
[402307626,1768653062831,-228.977496,0.00016712,2]
[402307627,1768653062841,-500.0,0.00016712,3]
[402307628,1768653062851,-645.09,0.00016712,3]
[402307629,1768653062861,-228.977496,0.00016712,2]
[402307630,1768653062871,-500.0,0.00016712,3]
[402307631,1768653062882,-863.18,0.00016712,3]
[402307632,1768653062892,-942.19,0.00016712,3]
[402307633,1768653062902,-228.977496,0.00016712,2]
[402307634,1768653062911,-500.0,0.00016712,3]
[402307635,1768653062921,-500.0,0.00016712,3]
[402307636,1768653062930,-348.9788039,0.00016712,3]
[402307637,1768653062940,-1098.82,0.00016712,3]
[402307638,1768653062949,-500.0,0.00016712,3]
[402307639,1768653062959,-228.977496,0.00016712,2]
[402307640,1768653062968,-500.56276391,0.00016712,3]
[402307641,1768653062978,-641.28,0.00016712,3]
[402307642,1768653062987,-500.0,0.00016712,3]
[402307643,1768653062996,-500.0,0.00016712,3]
[402307644,1768653063006,-500.0,0.00016712,3]
[402307645,1768653063015,-616.40548762,0.00016712,3]
[402307646,1768653063024,-500.0,0.00016712,3]
[402307647,1768653063033,-500.0,0.00016712,3]
[402307648,1768653063043,-1330.27,0.00016712,3]
[402307649,1768653063052,-722.95,0.00016712,3]
[402307650,1768653063062,-500.0,0.00016712,3]
[402307651,1768653063072,-500.0,0.00016712,3]
[402307652,1768653063081,-500.0,0.00016712,3]
[402307653,1768653063091,-500.0,0.00016712,3]
[402307654,1768653063101,-500.0,0.00016712,3]
[402307655,1768653063110,-500.0,0.00016712,3]
[402307656,1768653063120,-500.0,0.00016712,3]
[402307657,1768653063129,-500.0,0.00016712,3]
[402307658,1768653063139,-500.0,0.00016712,3]
[402307659,1768653063149,-500.0,0.00016712,3]
[402307660,1768653063159,-500.0,0.00016712,3]
[402307661,1768653063169,-1081.34,0.00016712,3]
[402307662,1768653063178,-604.11,0.00016712,3]
[402307663,1768653063187,-500.0,0.00016712,3]
[402307664,1768653063197,-784.27,0.00016712,3]
[402307665,1768653063207,-500.0,0.00016712,3]
[402307666,1768653063216,-500.0,0.00016712,3]
[402307667,1768653063225,-1786.2,0.00016712,3]
[402307668,1768653063234,-500.0,0.00016712,3]
[402307669,1768653063244,-500.0,0.00016712,3]
[402307670,1768653063253,-500.0,0.00016712,3]
[402307671,1768653063262,-500.0,0.00016712,3]
[402307672,1768653063272,-693.3,0.00016712,3]
[402307673,1768653063281,-1628.03,0.00016712,3]
[402307674,1768653063290,-693.9,0.00016712,3]
[402307675,1768653063299,-624.31598401,0.00016712,3]
[402307676,1768653063309,-523.8,0.00016712,3]
[402307677,1768653063318,-998.12,0.00016712,3]
[402307678,1768653063328,-500.0,0.00016712,3]
[402307679,1768653063337,-782.18,0.00016712,3]
[402307680,1768653063347,-500.0,0.00016712,3]
[402307681,1768653063357,-500.0,0.00016712,3]
[402307682,1768653063366,-501.51,0.00016712,3]
[402307683,1768653063375,-1075.34,0.00016712,3]
[402307684,1768653063385,-500.0,0.00016712,3]
[402307685,1768653063394,-500.0,0.00016712,3]
[402307686,1768653063405,-500.0,0.00016712,3]
[402307687,1768653063414,-2815.19,0.00016712,3]
[402307688,1768653063423,-500.0,0.00016712,3]
[402307689,1768653063433,-500.0,0.00016712,3]
[402307690,1768653063443,-500.0,0.00016712,3]
[402307691,1768653063454,-500.0,0.00016712,3]
[402307692,1768653063463,-497.40170951,0.00016712,3]
[402307693,1768653063473,-500.0,0.00016712,3]
[402307694,1768653063483,-500.0,0.00016712,3]
[402307695,1768653063492,-1439.17,0.00016712,3]
[402307696,1768653063503,-533.98,0.00016712,3]
[402307697,1768653063513,-1659.97,0.00016712,3]
[402307698,1768653063522,-500.0,0.00016712,3]
[402307699,1768653063531,-500.0,0.00016712,3]
[402307700,1768653063540,-2433.28,0.00016712,3]
[402307701,1768653063550,-578.09,0.00016712,3]
[402307702,1768653063559,-577.48511526,0.00016712,3]
[402307703,1768653063569,-500.0,0.00016712,3]
[402307704,1768653063578,-500.0,0.00016712,3]
[402307705,1768653063587,-500.0,0.00016712,3]
[402307706,1768653063596,-1851.83,0.00016712,3]
[402307707,1768653063605,-659.07,0.00016712,3]
[402307708,1768653063615,-500.0,0.00016712,3]
[402307709,1768653063624,-500.0,0.00016712,3]
[402307710,1768653063634,-500.0,0.00016712,3]
[402307711,1768653063643,-500.0,0.00016712,3]
[402307712,1768653063653,-500.0,0.00016712,3]
[402307713,1768653063663,-875.55,0.00016712,3]
[402307714,1768653063672,-508.96,0.00016712,3]
[402307715,1768653063681,-8441.37,0.00016712,3]
[402307716,1768653063692,-500.0,0.00016712,3]
[402307717,1768653063703,-980.47,0.00016712,3]
[402307718,1768653063714,-601.82,0.00016712,3]
[402307719,1768653063724,-500.0,0.00016712,3]
[402307720,1768653063735,-527.0,0.00016712,3]
[402307721,1768653063746,-502.17846525,0.00016712,3]
[402307722,1768653063756,-500.0,0.00016712,3]
[402307723,1768653063767,-500.0,0.00016712,3]
[402307724,1768653063777,-953.59,0.00016712,3]
[402307725,1768653063787,-500.0,0.00016712,3]
[402307726,1768653063795,-500.0,0.00016712,3]
[402307727,1768653063805,-500.0,0.00016712,3]
[402307728,1768653063815,-1106.34,0.00016712,3]
[402307729,1768653063825,-785.13,0.00016712,3]
[402307730,1768653063835,-733.19,0.00016712,3]
[402307731,1768653063844,-920.91,0.00016712,3]
[402307732,1768653063854,-1239.92,0.00016712,3]
[402307733,1768653063863,-1089.71,0.00016712,3]
[402307734,1768653063872,-500.0,0.00016712,3]
[402307735,1768653063884,-395.32581344,0.00016712,3]
[402307736,1768653063893,-500.0,0.00016712,3]
[402307737,1768653063903,-976.59,0.00016712,3]
[402307738,1768653063913,-1186.93,0.00016712,3]
[402307739,1768653063922,-500.0,0.00016712,3]
[402307740,1768653063931,-1777.27,0.00016712,3]
[402307741,1768653063942,-529.4766639,0.00016712,3]
[402307742,1768653063951,-972.38,0.00016712,3]
[402307743,1768653063960,-500.0,0.00016712,3]
[402307744,1768653063970,-2039.45,0.00016712,3]
[402307745,1768653063980,-680.35,0.00016712,3]
[402307746,1768653063990,-1072.76,0.00016712,3]
[402307747,1768653063999,-500.0,0.00016712,3]
[402307748,1768653064009,-500.0,0.00016712,3]
[402307749,1768653064018,-500.0,0.00016712,3]
[402307750,1768653064027,-500.0,0.00016712,3]
[402307751,1768653064036,-1670.99,0.00016712,3]
[402307752,1768653064045,-964.42,0.00016712,3]
[402307753,1768653064055,-822.95,0.00016712,3]
[402307754,1768653064065,-643.39,0.00016712,3]
[402307755,1768653064074,-500.0,0.00016712,3]
[402307756,1768653064084,-1613.1,0.00016712,3]
[402307757,1768653064094,-500.0,0.00016712,3]
[402307758,1768653064103,-500.0,0.00016712,3]
[402307759,1768653064113,-500.0,0.00016712,3]
[402307760,1768653064122,-500.0,0.00016712,3]
[402307761,1768653064132,-500.0,0.00016712,3]
[402307762,1768653064141,-1112.08,0.00016712,3]
[402307763,1768653064151,-612.1,0.00016712,3]
[402307764,1768653064160,-500.0,0.00016712,3]
[402307765,1768653064170,-500.0,0.00016712,3]
[402307766,1768653064180,-500.0,0.00016712,3]
[402307767,1768653064190,-500.0,0.00016712,3]
[402307768,1768653064199,-1670.51,0.00016712,3]
[402307769,1768653064209,-1806.23,0.00016712,3]
[402307770,1768653064219,-974.97,0.00016712,3]
[402307771,1768653064228,-500.0,0.00016712,3]
[402307772,1768653064237,-566.52,0.00016712,3]
[402307773,1768653064247,-500.0,0.00016712,3]
[402307774,1768653064256,-508.15,0.00016712,3]
[402307775,1768653064265,-500.0,0.00016712,3]
[402307776,1768653064275,-1170.72,0.00016712,3]
[402307777,1768653064284,-626.5,0.00016712,3]
[402307778,1768653064294,-1530.01,0.00016712,3]
[402307779,1768653064304,-500.0,0.00016712,3]
[402307780,1768653064313,-500.0,0.00016712,3]
[402307781,1768653064323,-1016.59,0.00016712,3]
[402307782,1768653064333,-500.0,0.00016712,3]
[402307783,1768653064342,-500.0,0.00016712,3]
[402307784,1768653064352,-500.0,0.00016712,3]
[402307785,1768653064362,-871.59,0.00016712,3]
[402307786,1768653064372,-570.88,0.00016712,3]
[402307787,1768653064381,-791.73,0.00016712,3]
[402307788,1768653064391,-849.02,0.00016712,3]
[402307789,1768653064400,-500.0,0.00016712,3]
[402307790,1768653064410,-500.0,0.00016712,3]
[402307791,1768653064420,-1482.88,0.00016712,3]
[402307792,1768653064434,-617.9,0.00016712,3]
[402307793,1768653064445,-500.0,0.00016712,3]
[402307794,1768653064455,-500.0,0.00016712,3]
[402307795,1768653064464,-500.0,0.00016712,3]
[402307796,1768653064473,-500.0,0.00016712,3]
[402307797,1768653064483,-500.0,0.00016712,3]
[402307798,1768653064492,-300.946978,0.00016712,2]
[402307799,1768653064502,-500.0,0.00016712,3]
[402307800,1768653064511,-863.5,0.00016712,3]
[402307801,1768653064521,-500.0,0.00016712,3]
[402307802,1768653064530,-753.38,0.00016712,3]
[402307803,1768653064540,-300.946978,0.00016712,2]
[402307804,1768653064550,-500.0,0.00016712,3]
[402307805,1768653064559,-500.0,0.00016712,2]
[402307806,1768653064568,-300.946978,0.00016712,2]
[402307807,1768653064578,-500.0,0.00016712,3]
[402307808,1768653064587,-1911.71,0.00016712,3]
[402307809,1768653064597,-500.0,0.00016712,3]
[402307810,1768653064606,-500.0,0.00016712,3]
[402307811,1768653064616,-500.0,0.00016712,3]
[402307812,1768653064626,-14952.36,0.00016712,3]
[402307813,1768653064636,-500.0,0.00016712,3]
[402307814,1768653064645,-500.0,0.00016712,3]
[402307815,1768653064655,-500.0,0.00016712,3]
[402307816,1768653064665,-500.0,0.00016712,2]
[402307817,1768653064673,-300.946978,0.00016712,2]
[402307818,1768653064682,-501.88,0.00016712,3]
[402307819,1768653064691,-500.0,0.00016712,3]
[402307820,1768653064700,-871.62,0.00016712,3]
[402307821,1768653064710,-500.0,0.00016712,3]
[402307822,1768653064719,-530.71,0.00016712,3]
[402307823,1768653064729,-634.18,0.00016712,3]
[402307824,1768653064738,-1429.84,0.00016712,3]
[402307825,1768653064747,-500.0,0.00016712,3]
[402307826,1768653064756,-500.0,0.00016712,3]
[402307827,1768653064766,-500.0,0.00016712,2]
[402307828,1768653064776,-500.0,0.00016712,3]
[402307829,1768653064785,-500.0,0.00016712,3]
[402307830,1768653064794,-500.0,0.00016712,3]
[402307831,1768653064803,-500.0,0.00016712,3]
[402307832,1768653064812,-1003.52,0.00016712,3]
[402307833,1768653064821,-565.41,0.00016712,3]
[402307834,1768653064831,-500.0,0.00016712,3]
[402307835,1768653064841,-2006.9,0.00016712,3]
[402307836,1768653064851,-1200.0,0.00016712,2]
[402307837,1768653064860,-3788.27,0.00016712,3]
[402307838,1768653064870,-1094.24,0.00016712,3]
[402307839,1768653064879,-500.0,0.00016712,3]
[402307840,1768653064889,-500.0,0.00016712,3]
[402307841,1768653064898,-500.0,0.00016712,2]
[402307842,1768653064909,-2183.31810187,0.00016731,2]
[402307843,1768653064918,-2264.10087164,0.00016786,2]
[402307844,1768653064928,-778.0,0.000168,2]
[402307845,1768653064937,-160.0,0.000169,2]
[402307846,1768653064947,-153.0,0.000169,2]
[402307847,1768653064957,-500.0,0.00016986,3]
[402307848,1768653064967,-500.0,0.00016986,3]
[402307849,1768653064977,-500.0,0.00016986,3]
[402307850,1768653064986,-500.0,0.00016986,3]
[402307851,1768653064996,-500.0,0.00016986,3]
[402307852,1768653065006,-500.0,0.00016986,3]
[402307853,1768653065015,-500.0,0.00016986,3]
[402307854,1768653065025,-540.45385614,0.00016986,3]
[402307855,1768653065034,-500.0,0.00016986,3]
[402307856,1768653065045,-940.35,0.00016986,3]
[402307857,1768653065054,-904.31,0.00016986,3]
[402307858,1768653065063,-500.0,0.00016986,3]
[402307859,1768653065072,-500.0,0.00016986,3]
[402307860,1768653065081,-1000.0,0.00016986,2]
[402307861,1768653065090,-500.0,0.00016986,3]
[402307862,1768653065099,-500.0,0.00016986,3]
[402307863,1768653065108,-500.0,0.00016986,3]
[402307864,1768653065117,-596.38925241,0.00016986,3]
[402307865,1768653065126,-557.26,0.00016986,3]
[402307866,1768653065136,-500.0,0.00016986,3]
[402307867,1768653065146,-524.86,0.00016986,3]
[402307868,1768653065156,-500.0,0.00016986,3]
[402307869,1768653065166,-953.58,0.00016986,3]
[402307870,1768653065175,-500.0,0.00016986,3]
[402307871,1768653065185,-500.0,0.00016986,3]
[402307872,1768653065194,-587.21,0.00016986,3]
[402307873,1768653065204,-510.56,0.00016986,3]
[402307874,1768653065213,-1541.12,0.00016986,3]
[402307875,1768653065223,-1016.13,0.00016986,3]
[402307876,1768653065233,-500.0,0.00016986,3]
[402307877,1768653065242,-500.0,0.00016986,3]
[402307878,1768653065252,-500.0,0.00016986,3]
[402307879,1768653065261,-500.0,0.00016986,3]
[402307880,1768653065271,-500.0,0.00016986,3]
[402307881,1768653065281,-1289.75,0.00016986,3]
[402307882,1768653065290,-500.55,0.00016986,3]
[402307883,1768653065299,-500.0,0.00016986,3]
[402307884,1768653065308,-500.0,0.00016986,3]
[402307885,1768653065318,-500.0,0.00016986,3]
[402307886,1768653065327,-667.06,0.00016986,3]
[402307887,1768653065336,-344.19716838,0.00016986,3]
[402307888,1768653065345,-500.0,0.00016986,3]
[402307889,1768653065354,-283.24,0.00016986,3]
[402307890,1768653065363,-500.0,0.00016986,3]
[402307891,1768653065372,-500.0,0.00016986,3]
[402307892,1768653065381,-500.0,0.00016986,3]
[402307893,1768653065390,-500.0,0.00016986,3]
[402307894,1768653065399,-500.0,0.00016986,3]
[402307895,1768653065408,-500.0,0.00016986,3]
[402307896,1768653065418,-500.0,0.00016986,3]
[402307897,1768653065427,-500.0,0.00016986,3]
[402307898,1768653065436,-500.0,0.00016986,3]
[402307899,1768653065447,-500.0,0.00016986,3]
[402307900,1768653065456,-500.0,0.00016986,3]
[402307901,1768653065465,-1507.14,0.00016986,3]
[402307902,1768653065474,-500.0,0.00016986,3]
[402307903,1768653065483,-500.0,0.00016986,3]
[402307904,1768653065492,-500.0,0.00016986,3]
[402307905,1768653065501,-740.56,0.00016986,3]
[402307906,1768653065510,-547.32197869,0.00016986,3]
[402307907,1768653065520,-500.0,0.00016986,3]
[402307908,1768653065529,-681.74,0.00016986,3]
[402307909,1768653065539,-567.65106123,0.00016986,3]
[402307910,1768653065549,-500.0,0.00016986,3]
[402307911,1768653065558,-915.36,0.00016986,3]
[402307912,1768653065567,-544.01,0.00016986,3]
[402307913,1768653065576,-500.0,0.00016986,3]
[402307914,1768653065585,-500.0,0.00016986,3]
[402307915,1768653065595,-500.0,0.00016986,3]
[402307916,1768653065603,-500.0,0.00016986,3]
[402307917,1768653065612,-1262.64,0.00016986,3]
[402307918,1768653065622,-500.0,0.00016986,3]
[402307919,1768653065631,-500.0,0.00016986,3]
[402307920,1768653065640,-544.04779014,0.00016986,3]
[402307921,1768653065650,-500.0,0.00016986,3]
[402307922,1768653065659,-500.0,0.00016986,3]
[402307923,1768653065670,-850.25,0.00016986,3]
[402307924,1768653065680,-500.0,0.00016986,3]
[402307925,1768653065690,-500.0,0.00016986,3]
[402307926,1768653065701,-649.2,0.00016986,3]
[402307927,1768653065710,-500.0,0.00016986,3]
[402307928,1768653065719,-500.0,0.00016986,3]
[402307929,1768653065729,-784.71,0.00016986,3]
[402307930,1768653065738,-500.0,0.00016986,3]
[402307931,1768653065747,-500.0,0.00016986,3]
[402307932,1768653065757,-500.0,0.00016986,3]
[402307933,1768653065766,-825.73,0.00016986,3]
[402307934,1768653065776,-609.64,0.00016986,3]
[402307935,1768653065786,-500.0,0.00016986,3]
[402307936,1768653065797,-500.0,0.00016986,3]
[402307937,1768653065806,-500.0,0.00016986,3]
[402307938,1768653065815,-904.51,0.00016986,3]
[402307939,1768653065825,-500.0,0.00016986,3]
[402307940,1768653065834,-995.62,0.00016986,3]
[402307941,1768653065844,-500.0,0.00016986,3]
[402307942,1768653065854,-875.03,0.00016986,3]
[402307943,1768653065864,-582.69,0.00016986,3]
[402307944,1768653065873,-848.03,0.00016986,3]
[402307945,1768653065883,-500.0,0.00016986,3]
[402307946,1768653065893,-500.0,0.00016986,3]
[402307947,1768653065903,-500.0,0.00016986,3]
[402307948,1768653065912,-500.0,0.00016986,3]
[402307949,1768653065923,-500.0,0.00016986,3]
[402307950,1768653065933,-500.0,0.00016986,3]
[402307951,1768653065943,-500.0,0.00016986,3]
[402307952,1768653065953,-500.0,0.00016986,3]
[402307953,1768653065963,-500.0,0.00016986,3]
[402307954,1768653065973,-500.0,0.00016986,3]
[402307955,1768653065983,-500.0,0.00016986,3]
[402307956,1768653065993,-500.0,0.00016986,3]
[402307957,1768653066003,-540.82,0.00016986,3]
[402307958,1768653066013,-500.0,0.00016986,3]
[402307959,1768653066023,-500.0,0.00016986,3]
[402307960,1768653066033,-500.0,0.00016986,3]
[402307961,1768653066042,-1286.45,0.00016986,3]
[402307962,1768653066051,-1184.11,0.00016986,3]
[402307963,1768653066061,-2338.27,0.00016986,3]
[402307964,1768653066071,-500.0,0.00016986,3]
[402307965,1768653066081,-562.69925045,0.00016986,3]
[402307966,1768653066091,-500.0,0.00016986,3]
[402307967,1768653066101,-1074.96,0.00016986,3]
[402307968,1768653066111,-500.0,0.00016986,3]
[402307969,1768653066121,-500.0,0.00016986,3]
[402307970,1768653066130,-939.95,0.00016986,3]
[402307971,1768653066140,-500.0,0.00016986,3]
[402307972,1768653066151,-648.04,0.00016986,3]
[402307973,1768653066161,-1305.23,0.00016986,3]
[402307974,1768653066171,-500.0,0.00016986,3]
[402307975,1768653066181,-207.01802829,0.00016986,2]
[402307976,1768653066191,-713.54,0.00016986,3]
[402307977,1768653066200,-500.0,0.00016986,3]
[402307978,1768653066210,-500.0,0.00016986,3]
[402307979,1768653066220,-500.0,0.00016986,3]
[402307980,1768653066230,-617.87,0.00016986,3]
[402307981,1768653066239,-500.0,0.00016986,3]
[402307982,1768653066249,-500.0,0.00016986,3]
[402307983,1768653066258,-500.0,0.00016986,3]
[402307984,1768653066270,-500.0,0.00016986,3]
[402307985,1768653066280,-580.8,0.00016986,3]
[402307986,1768653066290,-500.0,0.00016986,3]
[402307987,1768653066300,-500.0,0.00016986,3]
[402307988,1768653066310,-500.0,0.00016986,3]
[402307989,1768653066320,-797.95,0.00016986,3]
[402307990,1768653066329,-1586.94,0.00016986,3]
[402307991,1768653066338,-500.0,0.00016986,3]
[402307992,1768653066348,-1834.58,0.00016986,3]
[402307993,1768653066358,-500.0,0.00016986,3]
[402307994,1768653066368,-500.0,0.00016986,3]
[402307995,1768653066377,-1542.76,0.00016986,3]
[402307996,1768653066387,-500.0,0.00016986,3]
[402307997,1768653066397,-500.0,0.00016986,3]
[402307998,1768653066406,-960.56,0.00016986,3]
[402307999,1768653066415,-500.0,0.00016986,3]